bitfinex-derivatives/quotes_SOLF0:USTF0_20250829
["timestamp","ask_amount","ask_price","bid_price","bid_amount"]
[1756451568719,4.2982,209.33,209.18,7.55]
[1756451568914,66.8466,209.38,209.19,11.61982335]
[1756451569111,66.8538,209.35,209.2,7.55]
[1756451569315,4.2981,209.34,209.2,7.55]
[1756451569710,4.2974,209.37,209.2,7.55]
[1756451570217,66.8483,209.37,209.2,7.55]
[1756451570409,66.8381,209.4,209.2,7.55]
[1756451570612,66.8245,209.45,209.24,7.55]
[1756451570818,4.2966,209.41,209.24,7.55]
[1756451571525,71.1419,209.38,209.24,7.55]
[1756451571822,66.8447,209.38,209.24,7.55]
[1756451572221,4.2976,209.36,209.24,7.55]
[1756451573017,71.1483,209.36,209.24,7.55]
[1756451573617,4.2983,209.33,209.24,7.55]
[1756451576016,4.2983,209.33,209.19,11.61982335]
[1756451576017,4.2983,209.33,209.2,7.55]
[1756451577021,4.2983,209.33,209.2,11.8507]
[1756451577223,71.1482,209.36,209.2,11.8507]
[1756451578028,4.2975,209.36,209.22,4.3002]
[1756451579218,4.298,209.34,209.21,7.55]
[1756451579925,66.864,209.32,209.21,7.55]
[1756451580126,11.61982335,209.33,209.21,7.55]
[1756451580324,11.61982335,209.33,209.17,7.55]
[1756451580722,4.2989,209.3,209.18,4.3012]
[1756451581324,4.2989,209.3,209.17,7.55]
[1756451582121,11.61982335,209.33,209.17,11.8513]
[1756451582620,4.2983,209.32,209.17,7.55]
[1756451582926,4.2983,209.32,209.2,7.55]
[1756451583727,4.2978,209.35,209.22,7.55]
[1756451583923,11.61982335,209.39,209.24,7.55]
[1756451584121,11.61982335,209.39,209.27,4.2993]
[1756451584328,11.61982335,209.39,209.28,7.55]
[1756451584523,11.61982335,209.43,209.28,7.55]
[1756451585120,66.8011,209.52,209.28,7.55]
[1756451585322,66.8011,209.52,209.1,16.36882335]
[1756451585323,11.61982335,209.54,209.31,11.61982335]
[1756451585525,66.7647,209.63,209.43,7.55]
[1756451585729,66.7747,209.6,209.43,7.55]
[1756451585931,11.61982335,209.64,209.43,7.55]
[1756451586332,239.99502335,209.66,209.43,7.55]
[1756451586622,66.758,209.65,209.43,7.55]
[1756451586824,2.0,209.64,209.47,7.76]
[1756451587226,4.292,209.63,209.47,7.76]
[1756451587429,66.7643,209.63,209.47,7.76]
[1756451588027,4.2925,209.61,209.47,7.76]
[1756451588329,4.2925,209.61,209.47,19.37982335]
[1756451588527,71.0531,209.64,209.47,19.37982335]
[1756451589034,4.2924,209.61,209.47,19.37982335]
[1756451589234,71.0636,209.61,209.47,7.76]
[1756451589635,4.293,209.58,209.47,7.76]
[1756451594338,71.0733,209.58,209.47,19.37982335]
[1756451594636,4.293,209.58,209.47,19.37982335]
[1756451595033,66.7867,209.56,209.41,19.37982335]
[1756451595939,4.2942,209.53,209.41,19.37982335]
[1756451596435,71.0801,209.56,209.41,19.37982335]
[1756451597037,2.0,209.55,209.41,19.37982335]
[1756451597632,4.2934,209.56,209.41,11.61982335]
[1756451597836,71.0701,209.59,209.46,7.76]
[1756451598039,66.7773,209.59,209.46,7.76]
[1756451598444,4.2933,209.57,209.46,7.76]
[1756451598643,66.7815,209.58,209.42,7.76]
[1756451598944,4.2935,209.56,209.42,7.76]
[1756451599133,66.7869,209.56,209.42,7.76]
[1756451599336,66.7965,209.53,209.42,7.76]
[1756451599536,66.7965,209.53,209.39,11.61982335]
[1756451599537,4.2947,209.5,209.39,11.61982335]
[1756451599933,66.8066,209.5,209.39,11.61982335]
[1756451600538,4.2951,209.48,209.39,11.61982335]
[1756451600939,4.2951,209.48,209.37,7.76]
[1756451601140,4.2956,209.46,209.37,7.76]
[1756451601953,4.2956,209.46,209.36,332.51982335]
[1756451601954,4.2959,209.44,209.32,7.76]
[1756451602245,4.2959,209.44,209.33,11.61982335]
[1756451602639,66.8128,209.48,209.33,11.61982335]
[1756451603743,4.2957,209.45,209.33,11.61982335]
[1756451604144,66.8066,209.5,209.34,7.76]
[1756451604349,4.2951,209.48,209.34,7.76]
[1756451604643,66.8123,209.48,209.34,7.76]
[1756451604842,66.8066,209.5,209.34,7.76]
[1756451605148,66.8221,209.45,209.34,7.76]
[1756451606248,4.2963,209.42,209.29,4.2988]
[1756451606447,66.829,209.43,209.29,4.2988]
[1756451606747,66.8315,209.42,209.28,7.76]
[1756451607051,66.8476,209.37,209.34,0.03423835]
[1756451607348,68.8476,209.37,209.34,0.03423835]
[1756451607543,66.8315,209.42,209.25,7.76]
[1756451607752,66.8384,209.4,209.25,7.76]
[1756451608148,4.2976,209.36,209.25,7.76]
[1756451608349,66.8477,209.37,209.25,7.76]
[1756451609352,66.8574,209.34,209.25,7.76]
[1756451609650,66.8675,209.31,209.18,7.76]
[1756451609846,66.8608,209.33,209.18,7.76]
[1756451609847,66.87,209.3,209.18,7.76]
[1756451610644,4.2991,209.29,209.18,7.76]
[1756451611053,66.8746,209.29,209.13,7.76]
[1756451611251,4.2998,209.25,209.13,7.76]
[1756451612254,78.47682335,209.35,209.14,11.61982335]
[1756451612449,66.8573,209.34,209.16,7.76]
[1756451612952,66.8796,209.27,209.16,7.76]
[1756451613452,11.61982335,209.32,209.16,7.76]
[1756451614053,13.61982335,209.32,209.16,7.76]
[1756451614252,66.8668,209.31,209.16,7.76]
[1756451614649,4.2992,209.28,209.16,7.76]
[1756451614850,66.874,209.29,209.16,7.76]
[1756451615653,4.2997,209.26,209.16,7.76]
[1756451615851,11.61982335,209.31,209.16,7.76]
[1756451616854,66.8795,209.27,209.1,160.0]
[1756451617050,66.8795,209.27,209.11,7.16]
[1756451617250,4.2999,209.25,209.11,7.16]
[1756451617446,66.8795,209.27,209.11,7.16]
[1756451617647,2.0,209.26,209.11,7.16]
[1756451618058,6.2997,209.26,209.11,7.16]
[1756451618259,4.2997,209.26,209.11,7.16]
[1756451619259,4.3,209.24,209.11,7.16]
[1756451619559,11.61982335,209.26,209.11,7.16]
[1756451619753,4.2998,209.25,209.11,7.16]
[1756451620457,66.8802,209.27,209.11,7.16]
[1756451620758,66.8482,209.37,209.11,7.16]
[1756451620957,11.61982335,209.35,209.14,7.16]
[1756451621157,2.0,209.35,209.16,7.16]
[1756451621462,11.61982335,209.37,209.16,7.16]
[1756451621755,11.61982335,209.35,209.16,7.16]
[1756451621950,66.8897,209.24,209.04,320.78]
[1756451622150,66.8897,209.24,209.05,7.16]
[1756451622356,78.50562335,209.25,209.05,7.16]
[1756451622557,66.8858,209.25,209.05,7.16]
[1756451622758,66.8973,209.22,209.05,7.16]
[1756451623053,66.896,209.22,209.05,7.16]
[1756451623258,66.896,209.22,209.04,320.78]
[1756451623259,66.9136,209.17,209.03,159.72]
[1756451623556,66.9379,209.09,209.01,7.16]
[1756451623855,66.9506,209.05,208.76,7.16]
[1756451624055,66.9467,209.06,208.77,159.66]
[1756451624259,66.9467,209.06,208.86,7.16]
[1756451624557,66.9467,209.06,208.85,11.61982335]
[1756451624558,2.0,209.05,209.03,0.03321244]
[1756451624865,11.61982335,209.15,208.96,7.16]
[1756451625157,66.9051,209.19,208.98,7.16]
[1756451625357,11.61982335,209.17,208.98,7.16]
[1756451625553,11.61982335,209.17,209.0,7.16]
[1756451625861,66.8714,209.3,209.02,7.16]
[1756451625862,66.8843,209.26,209.02,7.16]
[1756451626059,11.61982335,209.24,209.02,7.16]
[1756451626356,11.61982335,209.24,209.04,7.16]
[1756451626557,11.61982335,209.24,209.06,7.16]
[1756451626756,66.9025,209.2,209.06,7.16]
[1756451626960,82.82312335,209.2,209.06,7.16]
[1756451627161,66.9102,209.18,208.98,7.16]
[1756451627356,66.9051,209.19,208.99,159.56]
[1756451627563,11.61982335,209.2,209.0,7.16]
[1756451627763,2.0,209.19,209.0,7.16]
[1756451627969,11.61982335,209.2,209.0,7.16]
[1756451628263,11.61982335,209.24,209.02,7.16]
[1756451628465,11.61982335,209.24,209.03,171.13982335]
[1756451628661,66.8927,209.23,209.04,7.16]
[1756451628964,71.1929,209.23,209.04,7.16]
[1756451629660,82.81272335,209.23,209.05,159.48]
[1756451629861,82.81272335,209.23,209.06,159.46]
[1756451630265,82.81272335,209.23,209.04,7.16]
[1756451630856,2.0,209.22,209.05,159.44]
[1756451631057,15.92002335,209.23,209.06,159.42]
[1756451631254,15.92002335,209.23,208.99,11.61982335]
[1756451631255,15.92002335,209.23,209.07,159.42]
[1756451631453,4.3002,209.23,209.05,7.16]
[1756451631658,4.3002,209.23,209.06,159.4]
[1756451632056,71.1927,209.23,209.05,7.16]
[1756451632368,66.8861,209.25,209.07,7.16]
[1756451632768,66.8924,209.23,209.08,153.06]
[1756451633368,66.8924,209.23,209.09,159.34]
[1756451633563,66.8924,209.23,209.07,7.16]
[1756451633770,71.1927,209.23,209.07,7.16]
[1756451633966,71.1927,209.23,209.08,159.32]
[1756451634170,71.1927,209.23,209.07,7.16]
[1756451634363,71.1927,209.23,209.09,159.32]
[1756451634763,71.1927,209.23,209.07,7.16]
[1756451634961,66.8924,209.23,209.07,7.16]
[1756451635167,2.0,209.24,209.07,7.16]
[1756451635168,2.0,209.24,209.08,159.28]
[1756451635465,66.8907,209.24,209.09,159.28]
[1756451635668,4.3005,209.22,209.07,7.16]
[1756451635867,4.3005,209.22,209.08,159.24]
[1756451636067,4.3005,209.22,209.09,159.24]
[1756451636866,71.1959,209.22,209.1,159.2]
[1756451637068,71.1959,209.22,209.07,7.16]
[1756451637369,71.1959,209.22,209.08,159.18]
[1756451637557,71.1959,209.22,209.07,7.16]
[1756451637764,4.3009,209.2,209.07,165.1]
[1756451638265,4.3009,209.2,209.07,7.16]
[1756451638563,4.3009,209.2,209.09,7.16]
[1756451638773,4.3009,209.2,209.1,159.12]
[1756451640068,4.3009,209.2,209.11,159.08]
[1756451640267,66.8684,209.31,209.12,7.16]
[1756451640469,66.8603,209.33,209.13,7.16]
[1756451640667,66.8652,209.32,209.14,149.78]
[1756451640974,4.299,209.29,209.16,7.16]
[1756451641267,4.299,209.29,209.17,15.34]
[1756451641469,66.8795,209.27,209.16,37.06]
[1756451641666,66.8763,209.28,209.17,43.74]
[1756451642068,4.2999,209.25,209.17,43.74]
[1756451642264,66.8682,209.31,209.17,56.88]
[1756451642470,66.8682,209.31,209.18,69.36]
[1756451642667,66.8682,209.31,209.16,7.16]
[1756451642871,66.8682,209.31,209.19,81.02]
[1756451643075,4.299,209.29,209.16,7.16]
[1756451643565,4.299,209.29,209.17,15.32]
[1756451643770,11.61982335,209.35,209.18,7.16]
[1756451644076,11.61982335,209.35,209.2,7.16]
[1756451644279,11.61982335,209.35,209.21,158.88]
[1756451644472,11.61982335,209.35,209.22,7.16]
[1756451644868,11.61982335,209.35,209.23,158.86]
[1756451645277,4.2978,209.35,209.25,7.16]
[1756451645970,4.2978,209.35,209.26,158.8]
[1756451646174,66.8327,209.42,209.25,7.16]
[1756451646175,66.8327,209.42,209.27,158.78]
[1756451646371,66.8411,209.39,209.28,158.78]
[1756451646681,66.8412,209.39,209.25,7.16]
[1756451646871,66.8412,209.39,209.26,158.76]
[1756451647275,66.8446,209.38,209.25,7.16]
[1756451647573,70.20454385,209.37,209.25,7.16]
[1756451647774,66.8482,209.37,209.25,7.16]
[1756451648170,4.2978,209.35,209.25,7.16]
[1756451648372,66.8642,209.32,209.18,165.85]
[1756451648670,2.0,209.34,209.18,11.4711]
[1756451648872,3.35786693,209.33,209.18,7.17]
[1756451649074,2.0,209.34,209.19,158.66]
[1756451649467,3.36010633,209.33,209.18,7.17]
[1756451649669,3.35999186,209.32,209.2,158.64]
[1756451649978,4.2984,209.32,209.2,158.64]
[1756451650179,2.0,209.34,209.21,158.6]
[1756451650374,3.36197124,209.33,209.19,4.3009]
[1756451650579,2.0,209.34,209.19,4.3009]
[1756451650782,3.36189102,209.33,209.18,7.17]
[1756451650981,4.2986,209.31,209.18,7.17]
[1756451651381,3.36327843,209.3,209.18,7.17]
[1756451651582,66.8609,209.33,209.18,7.17]
[1756451651881,4.299,209.29,209.18,7.17]
[1756451652381,4.299,209.29,209.14,66.9205]
[1756451652382,66.8799,209.27,209.14,158.52]
[1756451652876,4.2999,209.25,209.12,11.4723]
[1756451653081,4.2999,209.25,209.15,158.5]
[1756451653381,4.2999,209.25,209.14,4.302]
[1756451653574,4.2999,209.25,209.16,7.17]
[1756451653975,4.2992,209.28,209.16,7.17]
[1756451654282,4.2992,209.28,209.17,158.44]
[1756451654580,66.8543,209.35,209.18,158.42]
[1756451654769,3.36718158,209.34,209.19,165.59]
[1756451654971,66.8543,209.35,209.2,7.17]
[1756451655375,4.2987,209.3,209.21,158.4]
[1756451655577,66.8577,209.34,209.22,158.4]
[1756451655776,66.8577,209.34,209.2,7.17]
[1756451655974,66.8577,209.34,209.21,63.7]
[1756451656381,4.2986,209.31,209.2,7.17]
[1756451656577,4.2986,209.31,209.2,131.37]
[1756451656775,66.8731,209.29,209.11,66.9299]
[1756451656981,4.2998,209.25,209.12,7.17]
[1756451657572,4.2998,209.25,209.13,158.3]
[1756451658677,4.2998,209.25,209.14,7.17]
[1756451658879,4.2998,209.25,208.98,10.50820717]
[1756451658880,66.8985,209.21,209.0,7.17]
[1756451659179,11.61982335,209.25,209.06,7.17]
[1756451659778,4.3004,209.22,209.06,7.17]
[1756451659985,66.9403,209.08,208.9,7.98916116]
[1756451660279,66.9467,209.06,208.91,7.17]
[1756451660483,11.61982335,209.07,208.91,7.17]
[1756451660683,66.9474,209.06,208.91,7.17]
[1756451661278,68.9403,209.08,208.91,7.17]
[1756451661478,66.9434,209.07,208.91,7.17]
[1756451661779,4.3044,209.03,208.91,7.17]
[1756451662482,4.3048,209.01,208.91,7.17]
[1756451662978,4.3048,209.01,208.79,7.17]
[1756451663184,4.3052,208.99,208.82,7.17]
[1756451663482,4.3052,208.99,208.84,7.17]
[1756451664283,66.9669,209.0,208.77,67.0385]
[1756451664580,66.9669,209.0,208.79,7.17]
[1756451664581,66.976,208.97,208.79,7.17]
[1756451664786,11.61982335,208.9,208.7,67.0614]
[1756451664989,11.61982335,208.9,208.65,67.0776]
[1756451664990,11.61982335,208.9,208.71,7.17]
[1756451665279,71.3083,208.89,208.71,7.17]
[1756451665488,67.0111,208.86,208.71,7.17]
[1756451665687,71.3321,208.82,208.64,7.17]
[1756451665978,11.61982335,208.83,208.64,7.17]
[1756451666179,67.0103,208.87,208.64,7.17]
[1756451666381,67.0157,208.85,208.65,11.61982335]
[1756451666574,67.0115,208.86,208.66,7.17]
[1756451666776,67.0103,208.87,208.6,388.2931]
[1756451666777,67.0174,208.84,208.6,388.2931]
[1756451666976,67.0239,208.82,208.62,7.17]
[1756451667177,67.0174,208.84,208.62,7.17]
[1756451667374,2.0,208.85,208.64,7.17]
[1756451667589,2.0,208.85,208.66,7.17]
[1756451667779,2.0,208.85,208.65,158.0]
[1756451667780,2.0,208.85,208.68,7.17]
[1756451667980,82.93002335,208.89,208.7,7.17]
[1756451668176,67.0372,208.78,208.7,147.24]
[1756451668375,71.3473,208.78,208.63,7.17]
[1756451668577,67.031,208.8,208.63,7.17]
[1756451668782,67.0383,208.78,208.59,11.61982335]
[1756451669090,4.3099,208.76,208.58,7.17]
[1756451669281,67.0397,208.77,208.58,7.17]
[1756451669881,67.0404,208.77,208.59,17.52]
[1756451670082,67.0371,208.78,208.59,17.52]
[1756451670289,67.0403,208.77,208.58,7.17]
[1756451670581,67.0403,208.77,208.49,7.17]
[1756451670582,67.0527,208.73,208.49,7.17]
[1756451670783,67.0527,208.73,208.48,321.38]
[1756451670784,67.0598,208.71,208.53,7.17]
[1756451671279,11.61982335,208.78,208.55,7.17]
[1756451671480,67.0431,208.76,208.55,7.17]
[1756451671679,71.3873,208.66,208.48,328.55]
[1756451671880,67.082,208.64,208.48,328.55]
[1756451672081,67.0753,208.66,208.48,328.55]
[1756451672283,71.3935,208.64,208.48,328.55]
[1756451672680,67.0882,208.62,208.48,328.55]
[1756451672985,4.312,208.66,208.49,157.96]
[1756451673190,4.312,208.66,208.48,328.55]
[1756451673191,67.086,208.63,208.48,328.55]
[1756451673385,67.0686,208.68,208.48,486.53]
[1756451673589,19.71504459,208.71,208.49,7.17]
[1756451673793,67.0352,208.79,208.5,7.17]
[1756451673989,67.0058,208.88,208.6,7.17]
[1756451674184,67.0058,208.88,208.62,7.17]
[1756451674388,19.71504459,208.89,208.68,67.0681]
[1756451674588,4.3068,208.91,208.71,7.17]
[1756451674983,71.2944,208.93,208.73,7.17]
[1756451675195,4.3064,208.93,208.73,11.4804]
[1756451675392,71.2947,208.93,208.73,11.4804]
[1756451675593,71.3017,208.91,208.73,7.17]
[1756451675895,19.71504459,208.86,208.63,101.32]
[1756451676093,19.71504459,208.86,208.64,7.17]
[1756451676291,19.71504459,208.86,208.59,19.71504459]
[1756451676292,19.74504459,208.86,208.66,7.9]
[1756451676496,0.03,208.86,208.66,7.9]
[1756451676792,4.3073,208.89,208.65,126.29504459]
[1756451676793,127.81,208.92,208.67,111.54]
[1756451676997,194.8018,208.92,208.69,7.9]
[1756451677497,2.0,208.91,208.69,7.9]
[1756451677695,199.1085,208.92,208.7,7.9]
[1756451677887,0.03,208.89,208.7,7.9]
[1756451678294,71.3122,208.88,208.71,157.94]
[1756451678495,0.03,208.95,208.72,7.9]
[1756451678891,4.3359,208.95,208.74,7.9]
[1756451679092,71.3177,208.95,208.76,7.9]
[1756451679399,71.3177,208.95,208.77,6.56]
[1756451679596,71.2981,208.92,208.76,7.9]
[1756451679792,0.03,208.86,208.66,7.9]
[1756451679994,0.03,208.86,208.67,7.9]
[1756451680189,71.3218,208.85,208.67,7.9]
[1756451680495,67.03,208.8,208.67,7.9]
[1756451680698,0.03,208.76,208.58,7.9]
[1756451680989,0.03,208.76,208.59,67.02]
[1756451681190,71.3492,208.77,208.58,7.9]
[1756451681191,0.03,208.71,208.58,7.9]
[1756451681589,67.0396,208.77,208.58,7.9]
[1756451681590,0.03,208.77,208.58,7.9]
[1756451681786,0.03,208.77,208.58,79.3125]
[1756451681995,4.3398,208.77,208.58,79.3125]
[1756451682196,0.03,208.77,208.59,7.9]
[1756451682398,0.03,208.77,208.61,7.9]
[1756451682999,0.03,208.77,208.58,67.0991]
[1756451683000,109.41,208.82,208.63,7.9]
[1756451683596,0.03,208.82,208.63,7.9]
[1756451683893,67.0279,208.81,208.65,7.9]
[1756451684098,67.0279,208.81,208.57,321.7]
[1756451684099,67.0461,208.75,208.59,157.86]
[1756451684403,71.3662,208.72,208.59,7.9]
[1756451684597,67.0623,208.7,208.59,7.9]
[1756451684997,4.3113,208.69,208.59,7.9]
[1756451685396,0.03,208.72,208.59,7.9]
[1756451685891,4.3407,208.72,208.59,7.9]
[1756451686295,4.3112,208.7,208.59,2.9]
[1756451687498,0.03,208.72,208.59,2.9]
[1756451689198,4.311,208.71,208.63,0.03199989]
[1756451693404,0.03,208.72,208.63,0.03199989]
[1756451694100,4.3407,208.72,208.63,0.03199989]
[1756451694502,67.0852,208.72,208.63,0.03199989]
[1756451695704,67.0468,208.75,208.64,7.9]
[1756451695900,67.0481,208.74,208.64,7.9]
[1756451696207,67.0514,208.73,208.64,7.9]
[1756451696404,67.0481,208.74,208.64,7.9]
[1756451696405,67.0624,208.7,208.64,7.9]
[1756451696600,67.0596,208.71,208.56,7.9]
[1756451696802,67.0706,208.67,208.56,7.9]
[1756451697005,67.0735,208.66,208.5,7.9]
[1756451697200,72.1006,208.67,208.5,7.9]
[1756451697403,5.03,208.67,208.5,7.9]
[1756451697802,4.3113,208.69,208.51,19.71504459]
[1756451698002,4.3113,208.69,208.52,7.9]
[1756451698196,5.03,208.73,208.52,7.9]
[1756451698402,5.03,208.73,208.54,7.9]
[1756451698704,5.03,208.73,208.56,7.9]
[1756451699006,5.03,208.69,208.56,7.9]
[1756451699206,67.0702,208.67,208.56,7.9]
[1756451699807,4.3122,208.65,208.56,7.9]
[1756451700302,4.3109,208.71,208.56,7.9]
[1756451700807,5.03,208.74,208.57,157.64]
[1756451701102,5.03,208.74,208.58,157.64]
[1756451701309,5.03,208.74,208.59,165.54]
[1756451701607,11.79200339,208.72,208.6,7.9]
[1756451701908,11.79200339,208.72,208.54,165.52]
[1756451701909,5.03,208.7,208.54,165.52]
[1756451702205,5.03,208.7,208.55,7.9]
[1756451702699,9.3411,208.7,208.55,7.9]
[1756451703307,9.3411,208.7,208.56,157.6]
[1756451703698,9.3411,208.7,208.57,157.58]
[1756451703900,5.03,208.76,208.58,11.79200339]
[1756451704106,11.79200339,208.8,208.59,7.9]
[1756451704302,5.03,208.81,208.63,7.9]
[1756451704703,5.03,208.81,208.65,7.9]
[1756451705108,5.03,208.86,208.66,7.9]
[1756451705404,5.03,208.86,208.67,7.9]
[1756451705600,11.79200339,208.85,208.68,7.9]
[1756451706404,5.03,208.86,208.68,7.9]
[1756451706603,5.03,208.86,208.7,7.61]
[1756451707107,5.03,208.86,208.71,15.52]
[1756451707309,5.03,208.86,208.72,30.97]
[1756451707610,5.03,208.86,208.72,7.61]
[1756451707901,5.01,208.82,208.67,7.61]
[1756451708312,5.01,208.82,208.71,7.61]
[1756451708502,5.01,208.88,208.71,7.61]
[1756451708702,5.01,208.88,208.74,7.61]
[1756451709505,5.01,208.88,208.55,201.3218]
[1756451709506,5.01,208.85,208.65,11.79200339]
[1756451709706,5.01,208.8,208.66,7.61]
[1756451709911,72.039,208.8,208.66,7.61]
[1756451710110,5.01,208.8,208.66,7.61]
[1756451710807,5.01,208.87,208.68,7.61]
[1756451711005,3.19873885,208.86,208.68,7.61]
[1756451711204,5.01,208.87,208.7,7.61]
[1756451712913,5.01,208.87,208.73,11.79200339]
[1756451713115,5.01,208.87,208.74,7.61]
[1756451713606,5.01,208.93,208.75,157.4]
[1756451713812,5.01,208.93,208.74,7.61]
[1756451714008,67.016,208.84,208.64,7.61]
[1756451714214,5.01,208.77,208.64,7.61]
[1756451714415,72.0516,208.76,208.57,7.61]
[1756451714815,5.01,208.76,208.57,7.61]
[1756451715016,5.01,208.76,208.6,11.79200339]
[1756451715210,5.01,208.76,208.61,7.61]
[1756451716010,7.01,208.83,208.65,7.61]
[1756451716320,66.9922,208.92,208.72,11.79200339]
[1756451716321,5.01,208.89,208.72,11.79200339]
[1756451716518,5.01,208.89,208.73,7.61]
[1756451718918,5.01,208.89,208.78,74.6449]
[1756451719122,5.01,208.89,208.79,137.06]
[1756451719324,5.01,209.0,208.81,67.025]
[1756451719619,5.01,209.0,208.82,157.32]
[1756451719812,5.01,209.0,208.85,4.3079]
[1756451720722,5.01,209.0,208.83,164.93]
[1756451720919,86.61480672,209.04,208.83,164.93]
[1756451721226,66.9756,208.97,208.69,67.0628]
[1756451721421,66.9813,208.95,208.76,164.91]
[1756451721621,5.01,208.94,208.76,164.91]
[1756451721832,5.01,208.94,208.77,7.61]
[1756451722027,5.01,208.94,208.78,157.26]
[1756451722232,5.01,208.88,208.73,19.66260672]
[1756451722433,5.01,208.88,208.73,176.92260672]
[1756451722737,4.3075,208.87,208.72,7.61]
[1756451723033,66.9907,208.92,208.64,19.66260672]
[1756451723034,5.01,208.85,208.64,19.66260672]
[1756451723338,4.3092,208.79,208.65,7.61]
[1756451723731,5.01,208.8,208.65,7.61]
[1756451723927,66.9986,208.9,208.67,7.61]
[1756451723928,5.01,208.88,208.67,7.61]
[1756451724342,5.01,208.88,208.72,7.61]
[1756451724535,66.9729,208.98,208.72,7.61]
[1756451724733,5.01,208.97,208.76,19.66260672]
[1756451724934,5.01,208.97,208.77,30.11]
[1756451725336,5.01,208.97,208.77,22.5]
[1756451725635,5.01,208.97,208.78,7.61]
[1756451727034,5.01,208.97,208.79,157.22]
[1756451727234,5.01,208.97,208.8,7.61]
[1756451728234,5.01,208.98,208.8,164.81]
[1756451728833,5.01,208.98,208.82,4.3085]
[1756451729141,5.01,208.98,208.8,164.81]
[1756451729336,5.01,208.96,208.8,164.81]
[1756451729739,4.3056,208.97,208.8,164.81]
[1756451730039,5.01,208.94,208.8,164.81]
[1756451730430,5.01,208.92,208.79,157.14]
[1756451730631,5.01,208.92,208.76,321.72]
[1756451730834,5.01,208.92,208.76,478.86]
[1756451731034,66.9887,208.93,208.76,321.72]
[1756451731035,66.9985,208.9,208.76,321.72]
[1756451731434,4.3077,208.87,208.76,321.72]
[1756451731640,5.01,208.89,208.76,321.72]
[1756451732334,5.01,208.89,208.77,7.61]
[1756451733346,5.01,208.93,208.77,7.61]
[1756451733740,5.01,208.93,208.78,157.1]
[1756451734238,5.01,208.93,208.79,157.08]
[1756451734838,5.01,208.93,208.78,7.61]
[1756451735140,5.01,208.93,208.79,157.08]
[1756451735442,5.01,208.93,208.8,7.61]
[1756451736244,5.0,208.99,208.8,7.61]
[1756451736444,5.0,208.99,208.81,7.54]
[1756451736744,4.3053,208.98,208.81,7.54]
[1756451736937,5.0,208.99,208.81,7.54]
[1756451737144,4.3052,208.99,208.81,7.54]
[1756451737346,5.0,208.98,208.81,7.54]
[1756451737642,5.0,208.98,208.81,164.58]
[1756451737849,4.3055,208.97,208.81,7.54]